[Event "Titled Tuesday Blitz July 4 Late 2023"]
[White "reevecanada"]
[Black "financieru"]
[WhiteElo "2557"]
[BlackElo "2386"]
[Result "1-0"]
[Round "5"]
[TimeControl "180+2"]
[Date "2023.07.04"]
[WhiteClock "0:01:08"]
[BlackClock "0:00:09"]
[Board "87"]

1. e4 {[%clk 0:02:57]}  c5 {[%clk 0:03:00]} 2. Nf3 {[%clk 0:02:57]}  e6 {[%clk 0:03:01]} 3. b3 {[%clk 0:02:56]}  b6 {[%clk 0:03:01]} 4. Bb2 {[%clk 0:02:55]}  Bb7 {[%clk 0:03:02]} 5. Nc3 {[%clk 0:02:53]}  Nf6 {[%clk 0:02:58]} 6. e5 {[%clk 0:02:50]}  Nd5 {[%clk 0:02:58]} 7. Nxd5 {[%clk 0:02:50]}  Bxd5 {[%clk 0:02:59]} 8. Be2 {[%clk 0:02:51]}  Be7 {[%clk 0:02:59]} 9. O-O {[%clk 0:02:50]}  O-O {[%clk 0:03:00]} 10. c4 {[%clk 0:02:50]}  Bb7 {[%clk 0:03:00]} 11. d4 {[%clk 0:02:51]}  cxd4 {[%clk 0:02:36]} 12. Qxd4 {[%clk 0:02:52]}  Nc6 {[%clk 0:02:30]} 13. Qg4 {[%clk 0:02:49]}  Kh8 {[%clk 0:02:19]} 14. Rfd1 {[%clk 0:02:35]}  Qe8 {[%clk 0:02:17]} 15. Ng5 {[%clk 0:02:33]}  f5 {[%clk 0:02:01]} 16. exf6 {[%clk 0:02:14]}  Bxf6 {[%clk 0:02:01]} 17. Bxf6 {[%clk 0:02:14]}  gxf6 {[%clk 0:01:45]} 18. Nxh7 {[%clk 0:02:06]}  Kxh7 {[%clk 0:01:13]} 19. Rd3 {[%clk 0:02:03]}  Qg6 {[%clk 0:01:13]} 20. Rxd7+ {[%clk 0:01:52]}  Rf7 {[%clk 0:01:02]} 21. Qxg6+ {[%clk 0:01:39]}  Kxg6 {[%clk 0:01:01]} 22. Bh5+ {[%clk 0:01:40]}  Kxh5 {[%clk 0:00:58]} 23. Rxf7 {[%clk 0:01:40]}  Rb8 {[%clk 0:00:45]} 24. Rxf6 {[%clk 0:01:38]}  Nd4 {[%clk 0:00:36]} 25. f4 {[%clk 0:01:34]}  Rg8 {[%clk 0:00:21]} 26. g3 {[%clk 0:01:32]}  Rg6 {[%clk 0:00:22]} 27. Rxg6 {[%clk 0:01:30]}  Kxg6 {[%clk 0:00:23]} 28. Rd1 {[%clk 0:01:30]}  Nf5 {[%clk 0:00:20]} 29. Rd7 {[%clk 0:01:29]}  Be4 {[%clk 0:00:20]} 30. Rxa7 {[%clk 0:01:29]}  Kh5 {[%clk 0:00:21]} 31. Ra6 {[%clk 0:01:26]}  Kg4 {[%clk 0:00:21]} 32. Rxb6 {[%clk 0:01:26]}  Kf3 {[%clk 0:00:20]} 33. Rxe6 {[%clk 0:01:25]}  Nd4 {[%clk 0:00:18]} 34. Rd6 {[%clk 0:01:20]}  Ne2+ {[%clk 0:00:18]} 35. Kf1 {[%clk 0:01:19]}  Nc3 {[%clk 0:00:18]} 36. a3 {[%clk 0:01:15]}  Bf5 {[%clk 0:00:18]} 37. c5 {[%clk 0:01:14]}  Ne4 {[%clk 0:00:17]} 38. Rd3+ {[%clk 0:01:10]}  Kg4 {[%clk 0:00:17]} 39. Rd5 {[%clk 0:01:11]}  Be6 {[%clk 0:00:11]} 40. Re5 {[%clk 0:01:10]}  Nd2+ {[%clk 0:00:09]} 41. Ke2 {[%clk 0:01:08]} 1-0


[Site "https://www.chess.com"]

[Event "Titled Tuesday Blitz July 4 Late 2023"]
[White "Estrada Nieto, Julian"]
[Black "Fernandez Siles, Luis"]
[WhiteFideId "5101018"]
[BlackFideId "2209420"]
[WhiteElo "2554"]
[BlackElo "2379"]
[Result "0-1"]
[Round "5"]
[TimeControl "180+2"]
[Date "2023.07.04"]
[WhiteClock "0:00:01"]
[BlackClock "0:00:07"]
[Board "88"]

1. e4 {[%clk 0:03:00]}  c5 {[%clk 0:02:59]} 2. Nf3 {[%clk 0:03:00]}  Nc6 {[%clk 0:02:59]} 3. Bb5 {[%clk 0:02:58]}  g6 {[%clk 0:02:59]} 4. Bxc6 {[%clk 0:02:56]}  dxc6 {[%clk 0:03:00]} 5. d3 {[%clk 0:02:55]}  Bg7 {[%clk 0:02:59]} 6. h3 {[%clk 0:02:56]}  Nf6 {[%clk 0:02:59]} 7. Nc3 {[%clk 0:02:56]}  Nd7 {[%clk 0:02:58]} 8. Be3 {[%clk 0:02:57]}  b6 {[%clk 0:02:58]} 9. Qd2 {[%clk 0:02:57]}  h6 {[%clk 0:02:53]} 10. a4 {[%clk 0:02:55]}  a5 {[%clk 0:02:52]} 11. O-O {[%clk 0:02:54]}  e5 {[%clk 0:02:51]} 12. Nh2 {[%clk 0:02:54]}  Nf8 {[%clk 0:02:49]} 13. f4 {[%clk 0:02:51]}  exf4 {[%clk 0:02:50]} 14. Bxf4 {[%clk 0:02:48]}  Ne6 {[%clk 0:02:50]} 15. Be3 {[%clk 0:02:44]}  Nd4 {[%clk 0:02:33]} 16. Nf3 {[%clk 0:02:43]}  Be6 {[%clk 0:02:31]} 17. Bxd4 {[%clk 0:02:36]}  cxd4 {[%clk 0:02:30]} 18. Ne2 {[%clk 0:02:36]}  O-O {[%clk 0:02:19]} 19. Nf4 {[%clk 0:02:36]}  Qe7 {[%clk 0:02:04]} 20. Nxe6 {[%clk 0:02:34]}  fxe6 {[%clk 0:02:00]} 21. Rf2 {[%clk 0:02:11]}  e5 {[%clk 0:01:52]} 22. Raf1 {[%clk 0:02:04]}  Rf4 {[%clk 0:01:52]} 23. Nh2 {[%clk 0:01:51]}  Rxf2 {[%clk 0:01:45]} 24. Rxf2 {[%clk 0:01:51]}  Rf8 {[%clk 0:01:38]} 25. Rxf8+ {[%clk 0:01:47]}  Qxf8 {[%clk 0:01:37]} 26. b3 {[%clk 0:01:48]}  h5 {[%clk 0:01:34]} 27. Nf3 {[%clk 0:01:42]}  Bh6 {[%clk 0:01:31]} 28. Qe1 {[%clk 0:01:37]}  Be3+ {[%clk 0:01:22]} 29. Kh1 {[%clk 0:01:29]}  Qf6 {[%clk 0:01:06]} 30. Qg3 {[%clk 0:01:11]}  Bf4 {[%clk 0:01:04]} 31. Qe1 {[%clk 0:01:03]}  g5 {[%clk 0:00:58]} 32. Nd2 {[%clk 0:00:50]}  Bxd2 {[%clk 0:00:43]} 33. Qxd2 {[%clk 0:00:50]}  Qf1+ {[%clk 0:00:40]} 34. Kh2 {[%clk 0:00:50]}  Qf4+ {[%clk 0:00:38]} 35. Qxf4 {[%clk 0:00:50]}  exf4 {[%clk 0:00:32]} 36. Kg1 {[%clk 0:00:31]}  g4 {[%clk 0:00:29]} 37. Kf2 {[%clk 0:00:26]}  Kf7 {[%clk 0:00:29]} 38. Ke2 {[%clk 0:00:23]}  Kf6 {[%clk 0:00:28]} 39. Kf2 {[%clk 0:00:24]}  Kg5 {[%clk 0:00:26]} 40. Ke2 {[%clk 0:00:23]}  Kf6 {[%clk 0:00:17]} 41. Kf2 {[%clk 0:00:23]}  Ke5 {[%clk 0:00:17]} 42. Kg1 {[%clk 0:00:18]}  b5 {[%clk 0:00:16]} 43. Kf2 {[%clk 0:00:17]}  bxa4 {[%clk 0:00:12]} 44. bxa4 {[%clk 0:00:17]}  c5 {[%clk 0:00:12]} 45. Kf1 {[%clk 0:00:16]}  c4 {[%clk 0:00:12]} 46. Kf2 {[%clk 0:00:12]}  c3 {[%clk 0:00:12]} 47. Kf1 {[%clk 0:00:13]}  Kd6 {[%clk 0:00:12]} 48. Kf2 {[%clk 0:00:13]}  Kc5 {[%clk 0:00:13]} 49. Kf1 {[%clk 0:00:12]}  Kb4 {[%clk 0:00:13]} 50. Ke2 {[%clk 0:00:11]}  Kc5 {[%clk 0:00:07]} 51. hxg4 {[%clk 0:00:10]}  hxg4 {[%clk 0:00:07]} 52. Kf2 {[%clk 0:00:11]}  Kb4 {[%clk 0:00:07]} 53. Ke2 {[%clk 0:00:11]}  Kxa4 {[%clk 0:00:07]} 54. Kf2 {[%clk 0:00:04]}  Kb5 {[%clk 0:00:07]} 55. e5 {[%clk 0:00:04]}  Kc6 {[%clk 0:00:06]} 56. e6 {[%clk 0:00:04]}  Kd6 {[%clk 0:00:06]} 57. e7 {[%clk 0:00:01]}  Kxe7 {[%clk 0:00:07]} 0-1


[Site "https://www.chess.com"]

[Event "Titled Tuesday Blitz July 4 Late 2023"]
[White "Bruedigam, Martin"]
[Black "Silva, Pedro Gil Ferreira Da"]
[WhiteFideId "24608033"]
[BlackFideId "1946102"]
[WhiteElo "2552"]
[BlackElo "2377"]
[Result "1-0"]
[Round "5"]
[TimeControl "180+2"]
[Date "2023.07.04"]
[WhiteClock "0:01:59"]
[BlackClock "0:02:03"]
[Board "89"]

1. Nf3 {[%clk 0:03:00]}  g6 {[%clk 0:02:56]} 2. e3 {[%clk 0:02:58]}  Bg7 {[%clk 0:02:55]} 3. d4 {[%clk 0:02:57]}  Nf6 {[%clk 0:02:54]} 4. Nbd2 {[%clk 0:02:55]}  O-O {[%clk 0:02:53]} 5. b3 {[%clk 0:02:55]}  b6 {[%clk 0:02:52]} 6. Bb2 {[%clk 0:02:56]}  Bb7 {[%clk 0:02:53]} 7. Be2 {[%clk 0:02:56]}  c5 {[%clk 0:02:53]} 8. O-O {[%clk 0:02:56]}  d6 {[%clk 0:02:53]} 9. c4 {[%clk 0:02:56]}  e6 {[%clk 0:02:52]} 10. Re1 {[%clk 0:02:54]}  Nc6 {[%clk 0:02:51]} 11. Bd3 {[%clk 0:02:51]}  cxd4 {[%clk 0:02:47]} 12. Nxd4 {[%clk 0:02:45]}  Nxd4 {[%clk 0:02:44]} 13. Bxd4 {[%clk 0:02:46]}  Qe7 {[%clk 0:02:43]} 14. Qe2 {[%clk 0:02:45]}  Rfd8 {[%clk 0:02:25]} 15. Red1 {[%clk 0:02:45]}  e5 {[%clk 0:02:22]} 16. Bb2 {[%clk 0:02:43]}  d5 {[%clk 0:02:21]} 17. cxd5 {[%clk 0:02:41]}  Nxd5 {[%clk 0:02:22]} 18. Ba6 {[%clk 0:02:30]}  Nb4 {[%clk 0:02:20]} 19. Bxb7 {[%clk 0:02:29]}  Qxb7 {[%clk 0:02:21]} 20. a3 {[%clk 0:02:16]}  Nd3 {[%clk 0:02:19]} 21. Bc3 {[%clk 0:02:15]}  Rac8 {[%clk 0:02:18]} 22. Nc4 {[%clk 0:02:10]}  e4 {[%clk 0:02:13]} 23. Bxg7 {[%clk 0:02:07]}  Kxg7 {[%clk 0:02:14]} 24. a4 {[%clk 0:02:03]}  Qe7 {[%clk 0:02:10]} 25. Rd2 {[%clk 0:02:00]}  Nb4 {[%clk 0:02:05]} 26. Rad1 {[%clk 0:01:59]}  Rxd2 {[%clk 0:02:03]} 27. Qxd2 {[%clk 0:01:59]}  Rd8 {[%clk 0:02:03]} 28. Qxd8 {[%clk 0:01:59]} 1-0


[Site "https://www.chess.com"]

[Event "Titled Tuesday Blitz July 4 Late 2023"]
[White "Besedes, Danilo"]
[Black "Alahakoon, Isuru"]
[WhiteFideId "946796"]
[BlackFideId "9900993"]
[WhiteElo "2546"]
[BlackElo "2364"]
[Result "0-1"]
[Round "5"]
[TimeControl "180+2"]
[Date "2023.07.04"]
[WhiteClock "0:00:00"]
[BlackClock "0:00:04"]
[Board "91"]

1. b3 {[%clk 0:02:59]}  e5 {[%clk 0:02:59]} 2. Bb2 {[%clk 0:03:00]}  Nc6 {[%clk 0:03:00]} 3. e3 {[%clk 0:03:00]}  g6 {[%clk 0:03:00]} 4. Bb5 {[%clk 0:02:57]}  Nge7 {[%clk 0:02:59]} 5. Nf3 {[%clk 0:02:56]}  Bg7 {[%clk 0:02:59]} 6. O-O {[%clk 0:02:56]}  O-O {[%clk 0:02:59]} 7. d4 {[%clk 0:02:56]}  a6 {[%clk 0:02:58]} 8. Bxc6 {[%clk 0:02:49]}  Nxc6 {[%clk 0:02:58]} 9. d5 {[%clk 0:02:49]}  e4 {[%clk 0:02:55]} 10. Bxg7 {[%clk 0:02:42]}  Kxg7 {[%clk 0:02:55]} 11. dxc6 {[%clk 0:02:34]}  exf3 {[%clk 0:02:54]} 12. Qxf3 {[%clk 0:02:25]}  dxc6 {[%clk 0:02:50]} 13. Rd1 {[%clk 0:02:22]}  Qf6 {[%clk 0:02:48]} 14. Qxf6+ {[%clk 0:02:22]}  Kxf6 {[%clk 0:02:49]} 15. Nd2 {[%clk 0:02:21]}  Bf5 {[%clk 0:02:43]} 16. e4 {[%clk 0:02:17]}  Bg4 {[%clk 0:02:38]} 17. f3 {[%clk 0:02:16]}  Be6 {[%clk 0:02:38]} 18. Nf1 {[%clk 0:02:16]}  Rfd8 {[%clk 0:02:38]} 19. Kf2 {[%clk 0:02:16]}  c5 {[%clk 0:02:33]} 20. Ne3 {[%clk 0:02:08]}  c6 {[%clk 0:02:29]} 21. Rxd8 {[%clk 0:01:54]}  Rxd8 {[%clk 0:02:28]} 22. Rd1 {[%clk 0:01:55]}  Ra8 {[%clk 0:02:19]} 23. f4 {[%clk 0:01:36]}  Ke7 {[%clk 0:02:05]} 24. g4 {[%clk 0:01:35]}  f6 {[%clk 0:02:02]} 25. f5 {[%clk 0:01:33]}  Bf7 {[%clk 0:02:01]} 26. h3 {[%clk 0:01:27]}  b5 {[%clk 0:01:58]} 27. Ra1 {[%clk 0:01:10]}  Rd8 {[%clk 0:01:52]} 28. Rd1 {[%clk 0:01:10]}  Ra8 {[%clk 0:01:48]} 29. Ra1 {[%clk 0:00:59]}  Rd8 {[%clk 0:01:48]} 30. a4 {[%clk 0:00:58]}  Rd2+ {[%clk 0:01:38]} 31. Kf3 {[%clk 0:00:52]}  Rh2 {[%clk 0:01:36]} 32. Kg3 {[%clk 0:00:45]}  Re2 {[%clk 0:01:35]} 33. Kf3 {[%clk 0:00:45]}  Rh2 {[%clk 0:01:32]} 34. axb5 {[%clk 0:00:44]}  Rxh3+ {[%clk 0:01:30]} 35. Ke2 {[%clk 0:00:44]}  axb5 {[%clk 0:01:28]} 36. Ra7+ {[%clk 0:00:44]}  Ke8 {[%clk 0:01:24]} 37. g5 {[%clk 0:00:41]}  fxg5 {[%clk 0:01:19]} 38. f6 {[%clk 0:00:41]}  h5 {[%clk 0:01:09]} 39. e5 {[%clk 0:00:41]}  g4 {[%clk 0:00:56]} 40. e6 {[%clk 0:00:39]}  Bxe6 {[%clk 0:00:54]} 41. Re7+ {[%clk 0:00:38]}  Kf8 {[%clk 0:00:55]} 42. Rxe6 {[%clk 0:00:39]}  Rh2+ {[%clk 0:00:54]} 43. Kf1 {[%clk 0:00:38]}  g3 {[%clk 0:00:48]} 44. Rxc6 {[%clk 0:00:36]}  h4 {[%clk 0:00:45]} 45. Ng4 {[%clk 0:00:32]}  h3 {[%clk 0:00:26]} 46. Ne5 {[%clk 0:00:11]}  Rf2+ {[%clk 0:00:24]} 47. Ke1 {[%clk 0:00:09]}  Rxf6 {[%clk 0:00:12]} 48. Rxf6+ {[%clk 0:00:09]}  Ke7 {[%clk 0:00:11]} 49. Rxg6 {[%clk 0:00:09]}  h2 {[%clk 0:00:11]} 50. Rh6 {[%clk 0:00:09]}  g2 {[%clk 0:00:11]} 51. Nf3 {[%clk 0:00:07]}  g1=Q+ {[%clk 0:00:10]} 52. Nxg1 {[%clk 0:00:06]}  hxg1=Q+ {[%clk 0:00:10]} 53. Ke2 {[%clk 0:00:07]}  Qg4+ {[%clk 0:00:08]} 54. Ke1 {[%clk 0:00:07]}  Qg3+ {[%clk 0:00:06]} 55. Kd1 {[%clk 0:00:06]}  Qg1+ {[%clk 0:00:04]} 56. Ke2 {[%clk 0:00:00]}  Qg2+ {[%clk 0:00:04]} 0-1


[Site "https://www.chess.com"]

[Event "Titled Tuesday Blitz July 4 Late 2023"]
[White "Fiol, Fabrice"]
[Black "Eggleston, Thomas A"]
[WhiteFideId "611670"]
[BlackFideId "412139"]
[WhiteElo "2540"]
[BlackElo "2358"]
[Result "1-0"]
[Round "5"]
[TimeControl "180+2"]
[Date "2023.07.04"]
[WhiteClock "0:00:09"]
[BlackClock "0:00:00"]
[Board "94"]

1. e4 {[%clk 0:02:58]}  e6 {[%clk 0:03:00]} 2. Qe2 {[%clk 0:02:58]}  c5 {[%clk 0:02:58]} 3. Nf3 {[%clk 0:02:58]}  Nc6 {[%clk 0:02:58]} 4. g3 {[%clk 0:02:59]}  g6 {[%clk 0:02:56]} 5. Bg2 {[%clk 0:02:59]}  Bg7 {[%clk 0:02:56]} 6. O-O {[%clk 0:02:53]}  Nge7 {[%clk 0:02:56]} 7. d3 {[%clk 0:02:48]}  O-O {[%clk 0:02:54]} 8. h4 {[%clk 0:02:46]}  h6 {[%clk 0:02:53]} 9. c3 {[%clk 0:02:45]}  d5 {[%clk 0:02:46]} 10. e5 {[%clk 0:02:43]}  d4 {[%clk 0:02:44]} 11. c4 {[%clk 0:02:43]}  f6 {[%clk 0:02:34]} 12. exf6 {[%clk 0:02:33]}  Rxf6 {[%clk 0:02:34]} 13. Nbd2 {[%clk 0:02:26]}  Rf8 {[%clk 0:02:34]} 14. Ne4 {[%clk 0:02:24]}  b6 {[%clk 0:02:31]} 15. Re1 {[%clk 0:01:58]}  e5 {[%clk 0:02:31]} 16. Qc2 {[%clk 0:01:54]}  Bg4 {[%clk 0:02:14]} 17. Nh2 {[%clk 0:01:53]}  Bf5 {[%clk 0:02:13]} 18. Bd2 {[%clk 0:01:47]}  Qd7 {[%clk 0:02:06]} 19. a3 {[%clk 0:01:45]}  a5 {[%clk 0:02:05]} 20. Rab1 {[%clk 0:01:36]}  a4 {[%clk 0:02:04]} 21. b3 {[%clk 0:01:33]}  axb3 {[%clk 0:02:04]} 22. Qxb3 {[%clk 0:01:34]}  Ra6 {[%clk 0:02:03]} 23. a4 {[%clk 0:01:21]}  Na7 {[%clk 0:01:49]} 24. a5 {[%clk 0:01:02]}  Nac8 {[%clk 0:01:28]} 25. axb6 {[%clk 0:00:58]}  Rxb6 {[%clk 0:01:27]} 26. Qa3 {[%clk 0:00:59]}  Rxb1 {[%clk 0:01:19]} 27. Rxb1 {[%clk 0:00:58]}  Bh3 {[%clk 0:01:17]} 28. Nxc5 {[%clk 0:00:52]}  Qf5 {[%clk 0:01:16]} 29. Rf1 {[%clk 0:00:38]}  Bxg2 {[%clk 0:01:15]} 30. Kxg2 {[%clk 0:00:39]}  g5 {[%clk 0:01:07]} 31. hxg5 {[%clk 0:00:34]}  hxg5 {[%clk 0:01:07]} 32. Ne4 {[%clk 0:00:30]}  Ng6 {[%clk 0:01:01]} 33. Nxg5 {[%clk 0:00:24]}  Bh6 {[%clk 0:00:54]} 34. Ngf3 {[%clk 0:00:14]}  Bxd2 {[%clk 0:00:34]} 35. Nxd2 {[%clk 0:00:15]}  Qg5 {[%clk 0:00:28]} 36. Ne4 {[%clk 0:00:14]}  Nf4+ {[%clk 0:00:27]} 37. Kh1 {[%clk 0:00:14]}  Qh5 {[%clk 0:00:13]} 38. c5 {[%clk 0:00:12]}  Ne2 {[%clk 0:00:07]} 39. Qb3+ {[%clk 0:00:11]}  Kh8 {[%clk 0:00:06]} 40. Qe6 {[%clk 0:00:10]}  Nxg3+ {[%clk 0:00:05]} 41. Nxg3 {[%clk 0:00:10]}  Qh7 {[%clk 0:00:03]} 42. Qxe5+ {[%clk 0:00:10]}  Qg7 {[%clk 0:00:03]} 43. Qxg7+ {[%clk 0:00:10]}  Kxg7 {[%clk 0:00:04]} 44. Ne4 {[%clk 0:00:10]}  Kf7 {[%clk 0:00:03]} 45. Ng4 {[%clk 0:00:10]}  Ke6 {[%clk 0:00:03]} 46. Kg2 {[%clk 0:00:10]}  Kd5 {[%clk 0:00:03]} 47. f3 {[%clk 0:00:11]}  Ne7 {[%clk 0:00:03]} 48. Ngf6+ {[%clk 0:00:11]}  Kc6 {[%clk 0:00:02]} 49. Rb1 {[%clk 0:00:11]}  Nf5 {[%clk 0:00:02]} 50. Rb6+ {[%clk 0:00:11]}  Kc7 {[%clk 0:00:02]} 51. Ra6 {[%clk 0:00:11]}  Ne3+ {[%clk 0:00:02]} 52. Kf2 {[%clk 0:00:11]}  Rh8 {[%clk 0:00:01]} 53. Ra7+ {[%clk 0:00:08]}  Kb8 {[%clk 0:00:01]} 54. Rh7 {[%clk 0:00:09]}  Rf8 {[%clk 0:00:01]} 55. c6 {[%clk 0:00:08]}  Nd1+ {[%clk 0:00:01]} 56. Ke1 {[%clk 0:00:08]}  Ne3 {[%clk 0:00:00]} 57. Nd7+ {[%clk 0:00:09]} 1-0


[Site "https://www.chess.com"]

[Event "Titled Tuesday Blitz July 4 Late 2023"]
[White "Francisco Guecamburu, Candela Be"]
[Black "Zherebtsova, Alexandra"]
[WhiteFideId "160911"]
[BlackFideId "24129518"]
[WhiteElo "2536"]
[BlackElo "2355"]
[Result "1-0"]
[Round "5"]
[TimeControl "180+2"]
[Date "2023.07.04"]
[WhiteClock "0:00:02"]
[BlackClock "0:00:00"]
[Board "95"]

1. e4 {[%clk 0:03:00]}  e5 {[%clk 0:02:58]} 2. Nf3 {[%clk 0:03:01]}  Nc6 {[%clk 0:02:59]} 3. Bb5 {[%clk 0:03:01]}  a6 {[%clk 0:02:59]} 4. Ba4 {[%clk 0:03:01]}  Nf6 {[%clk 0:02:58]} 5. d3 {[%clk 0:03:01]}  d6 {[%clk 0:02:57]} 6. c4 {[%clk 0:02:59]}  g6 {[%clk 0:02:56]} 7. Nc3 {[%clk 0:02:59]}  Bg7 {[%clk 0:02:57]} 8. Be3 {[%clk 0:02:59]}  Nd7 {[%clk 0:02:49]} 9. Bg5 {[%clk 0:02:47]}  f6 {[%clk 0:02:41]} 10. Be3 {[%clk 0:02:47]}  O-O {[%clk 0:02:31]} 11. O-O {[%clk 0:02:35]}  Nb6 {[%clk 0:02:14]} 12. Bb3 {[%clk 0:02:23]}  Kh8 {[%clk 0:02:06]} 13. h3 {[%clk 0:02:18]}  Be6 {[%clk 0:01:56]} 14. Qe2 {[%clk 0:02:04]}  h6 {[%clk 0:01:38]} 15. d4 {[%clk 0:01:56]}  Bg8 {[%clk 0:01:24]} 16. d5 {[%clk 0:01:47]}  Ne7 {[%clk 0:01:25]} 17. c5 {[%clk 0:01:43]}  Nbc8 {[%clk 0:01:18]} 18. Nh4 {[%clk 0:01:18]}  f5 {[%clk 0:00:50]} 19. exf5 {[%clk 0:01:14]}  gxf5 {[%clk 0:00:50]} 20. f4 {[%clk 0:01:11]}  e4 {[%clk 0:00:42]} 21. Rad1 {[%clk 0:01:00]}  Kh7 {[%clk 0:00:35]} 22. Qf2 {[%clk 0:00:47]}  dxc5 {[%clk 0:00:26]} 23. Bxc5 {[%clk 0:00:47]}  Nd6 {[%clk 0:00:26]} 24. Bd4 {[%clk 0:00:44]}  Qe8 {[%clk 0:00:20]} 25. Qg3 {[%clk 0:00:35]}  Bxd4+ {[%clk 0:00:19]} 26. Rxd4 {[%clk 0:00:36]}  Qh5 {[%clk 0:00:17]} 27. Bd1 {[%clk 0:00:32]}  Qe8 {[%clk 0:00:15]} 28. Be2 {[%clk 0:00:21]}  Qf7 {[%clk 0:00:13]} 29. Rfd1 {[%clk 0:00:20]}  Qf6 {[%clk 0:00:13]} 30. Bf1 {[%clk 0:00:16]}  Bf7 {[%clk 0:00:13]} 31. Qe1 {[%clk 0:00:15]}  Rg8 {[%clk 0:00:13]} 32. Kh2 {[%clk 0:00:14]}  Rg7 {[%clk 0:00:12]} 33. Na4 {[%clk 0:00:08]}  b6 {[%clk 0:00:07]} 34. Nc3 {[%clk 0:00:07]}  Rag8 {[%clk 0:00:06]} 35. Bxa6 {[%clk 0:00:05]}  Ng6 {[%clk 0:00:04]} 36. Nxg6 {[%clk 0:00:03]}  Bxg6 {[%clk 0:00:05]} 37. Bf1 {[%clk 0:00:03]}  Bh5 {[%clk 0:00:05]} 38. R1d2 {[%clk 0:00:03]}  Qg6 {[%clk 0:00:03]} 39. Nd1 {[%clk 0:00:01]}  Bf3 {[%clk 0:00:02]} 40. Qf2 {[%clk 0:00:01]}  Qh5 {[%clk 0:00:00]} 41. Ne3 {[%clk 0:00:02]} 1-0


[Site "https://www.chess.com"]

[Event "Titled Tuesday Blitz July 4 Late 2023"]
[White "WindWhistler11"]
[Black "Lach, Aleksandra"]
[BlackFideId "1134299"]
[WhiteElo "2530"]
[BlackElo "2345"]
[Result "1-0"]
[Round "5"]
[TimeControl "180+2"]
[Date "2023.07.04"]
[WhiteClock "0:00:42"]
[BlackClock "0:00:16"]
[Board "97"]

1. Nf3 {[%clk 0:02:59]}  d6 {[%clk 0:02:53]} 2. g3 {[%clk 0:02:59]}  e5 {[%clk 0:02:53]} 3. d4 {[%clk 0:02:57]}  e4 {[%clk 0:02:53]} 4. Ng5 {[%clk 0:02:56]}  d5 {[%clk 0:02:51]} 5. c4 {[%clk 0:02:56]}  c6 {[%clk 0:02:50]} 6. Nc3 {[%clk 0:02:56]}  h6 {[%clk 0:02:47]} 7. Nh3 {[%clk 0:02:55]}  Nf6 {[%clk 0:02:47]} 8. cxd5 {[%clk 0:02:49]}  cxd5 {[%clk 0:02:46]} 9. Bf4 {[%clk 0:02:49]}  Nc6 {[%clk 0:02:30]} 10. Bg2 {[%clk 0:02:34]}  Bb4 {[%clk 0:02:29]} 11. O-O {[%clk 0:02:23]}  Bxc3 {[%clk 0:02:28]} 12. bxc3 {[%clk 0:02:23]}  O-O {[%clk 0:02:29]} 13. f3 {[%clk 0:02:19]}  exf3 {[%clk 0:02:21]} 14. exf3 {[%clk 0:02:19]}  Qa5 {[%clk 0:02:19]} 15. Qb3 {[%clk 0:02:12]}  b6 {[%clk 0:02:14]} 16. Rf2 {[%clk 0:01:57]}  Re8 {[%clk 0:02:00]} 17. Bf1 {[%clk 0:01:51]}  Ba6 {[%clk 0:01:55]} 18. Rd2 {[%clk 0:01:40]}  Bxf1 {[%clk 0:01:54]} 19. Rxf1 {[%clk 0:01:40]}  Rac8 {[%clk 0:01:51]} 20. Nf2 {[%clk 0:01:35]}  g5 {[%clk 0:01:27]} 21. Bd6 {[%clk 0:01:29]}  Re6 {[%clk 0:01:27]} 22. Ba3 {[%clk 0:01:27]}  Rce8 {[%clk 0:01:24]} 23. Nd3 {[%clk 0:01:18]}  Nxd4 {[%clk 0:01:24]} 24. Qb4 {[%clk 0:01:05]}  Qxb4 {[%clk 0:01:20]} 25. Nxb4 {[%clk 0:01:06]}  Ne2+ {[%clk 0:01:19]} 26. Kh1 {[%clk 0:01:05]}  Nxc3 {[%clk 0:01:14]} 27. Bb2 {[%clk 0:01:05]}  Nb5 {[%clk 0:00:28]} 28. Bxf6 {[%clk 0:01:04]}  Rxf6 {[%clk 0:00:29]} 29. Nxd5 {[%clk 0:01:04]}  Rc6 {[%clk 0:00:29]} 30. f4 {[%clk 0:00:57]}  gxf4 {[%clk 0:00:26]} 31. Rxf4 {[%clk 0:00:57]}  Re1+ {[%clk 0:00:23]} 32. Kg2 {[%clk 0:00:57]}  Rce6 {[%clk 0:00:22]} 33. Rg4+ {[%clk 0:00:49]}  Kf8 {[%clk 0:00:21]} 34. Nf4 {[%clk 0:00:48]}  Rd6 {[%clk 0:00:21]} 35. Rf2 {[%clk 0:00:47]}  Red1 {[%clk 0:00:20]} 36. Ng6+ {[%clk 0:00:44]}  Ke8 {[%clk 0:00:20]} 37. Ne5 {[%clk 0:00:43]}  R1d2 {[%clk 0:00:19]} 38. Rf4 {[%clk 0:00:42]}  Rxf2+ {[%clk 0:00:19]} 39. Rxf2 {[%clk 0:00:43]}  f6 {[%clk 0:00:18]} 40. Ng6 {[%clk 0:00:41]}  Kf7 {[%clk 0:00:19]} 41. Nh4 {[%clk 0:00:42]}  Rc6 {[%clk 0:00:18]} 42. Nf5 {[%clk 0:00:42]}  Kg6 {[%clk 0:00:16]} 43. Ne7+ {[%clk 0:00:42]} 1-0


[Site "https://www.chess.com"]